[Event "Titled Tuesday Blitz October 11 Late 2022"]
[White "Janaszak, Dawid"]
[Black "Bilan, Danila"]
[WhiteFideId "1119206"]
[BlackFideId "24161918"]
[WhiteElo "2226"]
[BlackElo "2203"]
[Result "1-0"]
[Round "07"]
[TimeControl "180+1"]
[Date "2022.10.12"]
[WhiteClock "0:01:34"]
[BlackClock "0:00:01"]

1. e4 {[%clk 0:03:00]}  c6 {[%clk 0:02:48]} 2. d4 {[%clk 0:03:00]}  d5 {[%clk 0:02:48]} 3. exd5 {[%clk 0:03:00]}  cxd5 {[%clk 0:02:48]} 4. Bd3 {[%clk 0:03:01]}  Nc6 {[%clk 0:02:46]} 5. c3 {[%clk 0:03:01]}  Qc7 {[%clk 0:02:46]} 6. Ne2 {[%clk 0:03:01]}  Bg4 {[%clk 0:02:45]} 7. O-O {[%clk 0:03:00]}  e6 {[%clk 0:02:33]} 8. Qe1 {[%clk 0:02:59]}  Bd6 {[%clk 0:02:24]} 9. f3 {[%clk 0:02:58]}  Bh5 {[%clk 0:02:03]} 10. Qh4 {[%clk 0:02:57]}  Nf6 {[%clk 0:01:38]} 11. Bg5 {[%clk 0:02:56]}  Bg6 {[%clk 0:01:24]} 12. Bxg6 {[%clk 0:02:56]}  fxg6 {[%clk 0:01:24]} 13. Bxf6 {[%clk 0:02:56]}  gxf6 {[%clk 0:01:21]} 14. Qxf6 {[%clk 0:02:57]}  Kd7 {[%clk 0:01:07]} 15. Qh4 {[%clk 0:02:54]}  g5 {[%clk 0:00:56]} 16. Qh5 {[%clk 0:02:50]}  Ne7 {[%clk 0:00:49]} 17. Na3 {[%clk 0:02:44]}  a6 {[%clk 0:00:49]} 18. Nc2 {[%clk 0:02:43]}  Ng6 {[%clk 0:00:47]} 19. Ne1 {[%clk 0:02:34]}  Raf8 {[%clk 0:00:35]} 20. Nd3 {[%clk 0:02:34]}  Kc8 {[%clk 0:00:34]} 21. Rae1 {[%clk 0:02:31]}  Rf6 {[%clk 0:00:23]} 22. b4 {[%clk 0:02:27]}  h6 {[%clk 0:00:20]} 23. Nc5 {[%clk 0:02:21]}  Bxc5 {[%clk 0:00:18]} 24. bxc5 {[%clk 0:02:21]}  Nf4 {[%clk 0:00:16]} 25. Nxf4 {[%clk 0:02:19]}  Qxf4 {[%clk 0:00:17]} 26. Re5 {[%clk 0:02:11]}  Qd2 {[%clk 0:00:10]} 27. Qg4 {[%clk 0:02:04]}  Re8 {[%clk 0:00:08]} 28. c4 {[%clk 0:01:52]}  Rf4 {[%clk 0:00:08]} 29. Qh5 {[%clk 0:01:44]}  Qxd4+ {[%clk 0:00:04]} 30. Kh1 {[%clk 0:01:45]}  Qxe5 {[%clk 0:00:04]} 31. Qxe8+ {[%clk 0:01:43]}  Kc7 {[%clk 0:00:05]} 32. c6 {[%clk 0:01:38]}  Rxc4 {[%clk 0:00:02]} 33. cxb7 {[%clk 0:01:34]}  Kxb7 {[%clk 0:00:01]} 34. Rb1+ {[%clk 0:01:34]}  Kc7 {[%clk 0:00:01]} 35. Qb8+ {[%clk 0:01:34]} 1-0


[Site "https://www.chess.com"]

[Event "Titled Tuesday Blitz October 11 Late 2022"]
[White "Jensen, Matthew R"]
[Black "Winterberg, Lukas"]
[WhiteFideId "2018110"]
[BlackFideId "24622702"]
[WhiteElo "2307"]
[BlackElo "2349"]
[Result "1/2-1/2"]
[Round "07"]
[TimeControl "180+1"]
[Date "2022.10.12"]
[WhiteClock "0:00:04"]
[BlackClock "0:00:06"]

1. d4 {[%clk 0:03:00]}  Nf6 {[%clk 0:02:59]} 2. c4 {[%clk 0:03:01]}  e6 {[%clk 0:02:57]} 3. g3 {[%clk 0:03:01]}  d5 {[%clk 0:02:56]} 4. Bg2 {[%clk 0:03:01]}  Be7 {[%clk 0:02:56]} 5. Nf3 {[%clk 0:03:01]}  O-O {[%clk 0:02:56]} 6. O-O {[%clk 0:03:02]}  dxc4 {[%clk 0:02:56]} 7. Na3 {[%clk 0:03:00]}  Bxa3 {[%clk 0:02:47]} 8. bxa3 {[%clk 0:03:01]}  b5 {[%clk 0:02:44]} 9. a4 {[%clk 0:03:01]}  a6 {[%clk 0:02:34]} 10. Ba3 {[%clk 0:03:00]}  Re8 {[%clk 0:02:33]} 11. Ne5 {[%clk 0:02:55]}  c6 {[%clk 0:02:32]} 12. Nxc6 {[%clk 0:02:52]}  Nxc6 {[%clk 0:02:32]} 13. Bxc6 {[%clk 0:02:52]}  Bd7 {[%clk 0:02:33]} 14. Bxa8 {[%clk 0:02:52]}  Qxa8 {[%clk 0:02:34]} 15. f3 {[%clk 0:02:52]}  e5 {[%clk 0:02:27]} 16. e4 {[%clk 0:02:47]}  Bh3 {[%clk 0:02:06]} 17. Re1 {[%clk 0:02:44]}  Rd8 {[%clk 0:01:32]} 18. d5 {[%clk 0:02:37]}  Qa7+ {[%clk 0:01:31]} 19. Kh1 {[%clk 0:02:32]}  Qf2 {[%clk 0:01:29]} 20. Rg1 {[%clk 0:02:26]}  h5 {[%clk 0:00:31]} 21. Be7 {[%clk 0:02:13]}  Ng4 {[%clk 0:00:23]} 22. fxg4 {[%clk 0:02:02]}  Bxg4 {[%clk 0:00:21]} 23. Rg2 {[%clk 0:01:22]}  Bf3 {[%clk 0:00:16]} 24. Qg1 {[%clk 0:01:21]}  Qb2 {[%clk 0:00:14]} 25. Rf1 {[%clk 0:01:11]}  Bxe4 {[%clk 0:00:09]} 26. Bxd8 {[%clk 0:01:08]}  c3 {[%clk 0:00:10]} 27. Qf2 {[%clk 0:01:04]}  c2 {[%clk 0:00:05]} 28. Qxf7+ {[%clk 0:01:04]}  Kh7 {[%clk 0:00:06]} 29. Qxh5+ {[%clk 0:01:03]}  Kg8 {[%clk 0:00:06]} 30. Qe8+ {[%clk 0:00:17]}  Kh7 {[%clk 0:00:05]} 31. Qh5+ {[%clk 0:00:17]}  Kg8 {[%clk 0:00:06]} 32. Qe8+ {[%clk 0:00:07]}  Kh7 {[%clk 0:00:06]} 33. Qh5+ {[%clk 0:00:04]} 1/2-1/2


[Site "https://www.chess.com"]

[Event "Titled Tuesday Blitz October 11 Late 2022"]
[White "Kostiukov, Alexandr"]
[Black "Zochowski, Kacper"]
[WhiteFideId "14108100"]
[BlackFideId "1125494"]
[WhiteElo "2202"]
[BlackElo "2292"]
[Result "0-1"]
[Round "07"]
[TimeControl "180+1"]
[Date "2022.10.12"]
[WhiteClock "0:00:21"]
[BlackClock "0:01:00"]

1. g3 {[%clk 0:03:00]}  g6 {[%clk 0:02:57]} 2. Bg2 {[%clk 0:03:00]}  Bg7 {[%clk 0:02:58]} 3. Nf3 {[%clk 0:02:59]}  e5 {[%clk 0:02:58]} 4. c4 {[%clk 0:02:57]}  d6 {[%clk 0:02:58]} 5. O-O {[%clk 0:02:57]}  Ne7 {[%clk 0:02:58]} 6. d4 {[%clk 0:02:57]}  e4 {[%clk 0:02:57]} 7. Ng5 {[%clk 0:02:57]}  f5 {[%clk 0:02:58]} 8. Nc3 {[%clk 0:02:56]}  h6 {[%clk 0:02:58]} 9. Nh3 {[%clk 0:02:57]}  g5 {[%clk 0:02:57]} 10. f3 {[%clk 0:02:57]}  exf3 {[%clk 0:02:56]} 11. exf3 {[%clk 0:02:57]}  O-O {[%clk 0:02:57]} 12. Be3 {[%clk 0:02:52]}  d5 {[%clk 0:02:55]} 13. cxd5 {[%clk 0:02:23]}  Nxd5 {[%clk 0:02:46]} 14. Nxd5 {[%clk 0:02:22]}  Qxd5 {[%clk 0:02:46]} 15. f4 {[%clk 0:02:22]}  Qe6 {[%clk 0:02:46]} 16. Qb3 {[%clk 0:02:01]}  Qxb3 {[%clk 0:02:44]} 17. axb3 {[%clk 0:02:01]}  g4 {[%clk 0:02:43]} 18. Nf2 {[%clk 0:02:00]}  c6 {[%clk 0:02:43]} 19. Nd3 {[%clk 0:01:56]}  Nd7 {[%clk 0:02:37]} 20. Ne5 {[%clk 0:01:55]}  Nf6 {[%clk 0:02:36]} 21. b4 {[%clk 0:01:49]}  a6 {[%clk 0:02:32]} 22. Rfc1 {[%clk 0:01:44]}  Be6 {[%clk 0:02:32]} 23. Nd3 {[%clk 0:01:34]}  Rad8 {[%clk 0:02:25]} 24. Nc5 {[%clk 0:01:28]}  Bc8 {[%clk 0:02:25]} 25. b5 {[%clk 0:01:16]}  axb5 {[%clk 0:02:24]} 26. Ra8 {[%clk 0:01:16]}  Rfe8 {[%clk 0:02:22]} 27. Kf2 {[%clk 0:01:14]}  Nd7 {[%clk 0:02:03]} 28. Rxc8 {[%clk 0:01:09]}  Nxc5 {[%clk 0:01:54]} 29. Rxd8 {[%clk 0:01:01]}  Nd3+ {[%clk 0:01:54]} 30. Kf1 {[%clk 0:00:55]}  Rxd8 {[%clk 0:01:54]} 31. Ra1 {[%clk 0:00:48]}  Nxb2 {[%clk 0:01:38]} 32. Ra7 {[%clk 0:00:47]}  Nc4 {[%clk 0:01:38]} 33. Bf2 {[%clk 0:00:40]}  Bxd4 {[%clk 0:01:37]} 34. Bxd4 {[%clk 0:00:38]}  Rxd4 {[%clk 0:01:37]} 35. Rxb7 {[%clk 0:00:39]}  Ne3+ {[%clk 0:01:35]} 36. Kf2 {[%clk 0:00:39]}  Nxg2 {[%clk 0:01:35]} 37. Kxg2 {[%clk 0:00:40]}  b4 {[%clk 0:01:33]} 38. Kf2 {[%clk 0:00:40]}  Rc4 {[%clk 0:01:30]} 39. Ke3 {[%clk 0:00:39]}  c5 {[%clk 0:01:30]} 40. Kd2 {[%clk 0:00:38]}  Rc3 {[%clk 0:01:30]} 41. Rc7 {[%clk 0:00:35]}  Kf8 {[%clk 0:01:30]} 42. Rc6 {[%clk 0:00:32]}  c4 {[%clk 0:01:21]} 43. Rf6+ {[%clk 0:00:29]}  Kg7 {[%clk 0:01:16]} 44. Rxf5 {[%clk 0:00:30]}  Rd3+ {[%clk 0:01:15]} 45. Ke2 {[%clk 0:00:29]}  b3 {[%clk 0:01:15]} 46. Rb5 {[%clk 0:00:25]}  Rc3 {[%clk 0:01:15]} 47. Rb6 {[%clk 0:00:21]}  Rc2+ {[%clk 0:01:15]} 48. Kd1 {[%clk 0:00:21]}  Rxh2 {[%clk 0:01:10]} 49. f5 {[%clk 0:00:21]}  b2 {[%clk 0:01:00]} 0-1


[Site "https://www.chess.com"]

[Event "Titled Tuesday Blitz October 11 Late 2022"]
[White "Kouskoutis, Georgios-Alexandros"]
[Black "Leiva, Gianmarco"]
[WhiteFideId "4234049"]
[BlackFideId "3804399"]
[WhiteElo "2561"]
[BlackElo "2749"]
[Result "1-0"]
[Round "07"]
[TimeControl "180+1"]
[Date "2022.10.12"]
[WhiteClock "0:00:59"]
[BlackClock "0:00:01"]

1. c4 {[%clk 0:03:00]}  e6 {[%clk 0:02:53]} 2. g3 {[%clk 0:03:00]}  d5 {[%clk 0:02:54]} 3. Bg2 {[%clk 0:03:00]}  Nf6 {[%clk 0:02:53]} 4. Nf3 {[%clk 0:03:01]}  d4 {[%clk 0:02:36]} 5. O-O {[%clk 0:03:00]}  c5 {[%clk 0:02:35]} 6. e3 {[%clk 0:03:01]}  Nc6 {[%clk 0:02:35]} 7. exd4 {[%clk 0:03:01]}  cxd4 {[%clk 0:02:35]} 8. d3 {[%clk 0:03:01]}  Bd6 {[%clk 0:02:30]} 9. Na3 {[%clk 0:03:02]}  e5 {[%clk 0:02:25]} 10. Nc2 {[%clk 0:03:00]}  a5 {[%clk 0:02:22]} 11. Bg5 {[%clk 0:03:00]}  h6 {[%clk 0:02:20]} 12. Bxf6 {[%clk 0:02:58]}  Qxf6 {[%clk 0:02:20]} 13. Re1 {[%clk 0:02:58]}  O-O {[%clk 0:02:21]} 14. Nd2 {[%clk 0:02:56]}  Qd8 {[%clk 0:01:57]} 15. a3 {[%clk 0:02:46]}  Re8 {[%clk 0:01:51]} 16. Rb1 {[%clk 0:02:45]}  a4 {[%clk 0:01:39]} 17. b4 {[%clk 0:02:45]}  axb3 {[%clk 0:01:39]} 18. Rxb3 {[%clk 0:02:45]}  Qc7 {[%clk 0:01:35]} 19. Nb4 {[%clk 0:02:35]}  Nxb4 {[%clk 0:01:09]} 20. axb4 {[%clk 0:02:36]}  Bd7 {[%clk 0:01:10]} 21. b5 {[%clk 0:02:19]}  Ra2 {[%clk 0:01:08]} 22. Bd5 {[%clk 0:02:06]}  Bf5 {[%clk 0:00:38]} 23. Qf3 {[%clk 0:01:53]}  Bg6 {[%clk 0:00:36]} 24. Ne4 {[%clk 0:01:50]}  b6 {[%clk 0:00:18]} 25. Rbb1 {[%clk 0:01:34]}  Bf8 {[%clk 0:00:14]} 26. c5 {[%clk 0:01:19]}  Bxe4 {[%clk 0:00:09]} 27. Rxe4 {[%clk 0:01:11]}  Bxc5 {[%clk 0:00:07]} 28. Bxa2 {[%clk 0:01:10]}  Qd7 {[%clk 0:00:02]} 29. Rbe1 {[%clk 0:01:07]}  Bd6 {[%clk 0:00:02]} 30. Bd5 {[%clk 0:01:01]}  Re7 {[%clk 0:00:02]} 31. Bc6 {[%clk 0:01:00]}  Qa7 {[%clk 0:00:01]} 32. R4e2 {[%clk 0:01:00]}  g6 {[%clk 0:00:01]} 33. Qd5 {[%clk 0:00:59]}  Kg7 {[%clk 0:00:01]} 34. Qxd6 {[%clk 0:00:59]}  Qa3 {[%clk 0:00:01]} 35. Qxa3 {[%clk 0:00:59]} 1-0


[Site "https://www.chess.com"]

[Event "Titled Tuesday Blitz October 11 Late 2022"]
[White "Kravtsiv, Martyn"]
[Black "Dubov, Daniil"]
[WhiteFideId "14113147"]
[BlackFideId "24126055"]
[WhiteElo "2694"]
[BlackElo "2791"]
[Result "1/2-1/2"]
[Round "07"]
[TimeControl "180+1"]
[Date "2022.10.11"]
[WhiteClock "0:00:10"]
[BlackClock "0:00:50"]

1. e4 {[%clk 0:03:00]}  c5 {[%clk 0:02:59]} 2. Nf3 {[%clk 0:03:01]}  Nc6 {[%clk 0:03:00]} 3. d4 {[%clk 0:03:00]}  cxd4 {[%clk 0:03:00]} 4. Nxd4 {[%clk 0:03:01]}  Nf6 {[%clk 0:03:01]} 5. Nc3 {[%clk 0:03:00]}  d6 {[%clk 0:03:02]} 6. g3 {[%clk 0:02:57]}  e5 {[%clk 0:03:00]} 7. Nde2 {[%clk 0:02:54]}  Be7 {[%clk 0:03:00]} 8. Bg2 {[%clk 0:02:54]}  O-O {[%clk 0:03:01]} 9. O-O {[%clk 0:02:52]}  Be6 {[%clk 0:03:00]} 10. h3 {[%clk 0:02:52]}  Rc8 {[%clk 0:02:59]} 11. g4 {[%clk 0:02:49]}  a6 {[%clk 0:02:53]} 12. a3 {[%clk 0:02:47]}  b5 {[%clk 0:02:51]} 13. Ng3 {[%clk 0:02:45]}  g6 {[%clk 0:02:49]} 14. Bh6 {[%clk 0:02:37]}  Re8 {[%clk 0:02:48]} 15. Qd2 {[%clk 0:02:37]}  Na5 {[%clk 0:02:46]} 16. Nf5 {[%clk 0:02:26]}  Bf8 {[%clk 0:02:31]} 17. Bxf8 {[%clk 0:02:22]}  Rxf8 {[%clk 0:02:31]} 18. Nxd6 {[%clk 0:02:16]}  Rc7 {[%clk 0:02:31]} 19. Rad1 {[%clk 0:02:00]}  Rd7 {[%clk 0:02:31]} 20. Qg5 {[%clk 0:01:55]}  Nxg4 {[%clk 0:02:14]} 21. Nxf7 {[%clk 0:01:45]}  Bxf7 {[%clk 0:02:08]} 22. Qxd8 {[%clk 0:01:33]}  Rfxd8 {[%clk 0:02:08]} 23. hxg4 {[%clk 0:01:33]}  Rd2 {[%clk 0:02:01]} 24. Nd5 {[%clk 0:01:28]}  Rxd1 {[%clk 0:01:56]} 25. Rxd1 {[%clk 0:01:29]}  Kg7 {[%clk 0:01:55]} 26. b3 {[%clk 0:01:27]}  Nc6 {[%clk 0:01:52]} 27. Ne3 {[%clk 0:01:25]}  Rxd1+ {[%clk 0:01:49]} 28. Nxd1 {[%clk 0:01:25]}  Nd4 {[%clk 0:01:49]} 29. Ne3 {[%clk 0:01:25]}  Kf6 {[%clk 0:01:50]} 30. f3 {[%clk 0:01:09]}  Kg5 {[%clk 0:01:48]} 31. Kf2 {[%clk 0:01:09]}  Be6 {[%clk 0:01:47]} 32. Bf1 {[%clk 0:01:07]}  h5 {[%clk 0:01:45]} 33. a4 {[%clk 0:01:02]}  bxa4 {[%clk 0:01:37]} 34. bxa4 {[%clk 0:01:01]}  a5 {[%clk 0:01:37]} 35. c3 {[%clk 0:00:48]}  Nb3 {[%clk 0:01:36]} 36. Bc4 {[%clk 0:00:41]}  Bxc4 {[%clk 0:01:35]} 37. Nxc4 {[%clk 0:00:42]}  Kf4 {[%clk 0:01:34]} 38. gxh5 {[%clk 0:00:21]}  gxh5 {[%clk 0:01:34]} 39. Kg2 {[%clk 0:00:21]}  Nc5 {[%clk 0:00:58]} 40. Nxa5 {[%clk 0:00:21]}  Nxa4 {[%clk 0:00:58]} 41. c4 {[%clk 0:00:20]}  Nc5 {[%clk 0:00:59]} 42. Nc6 {[%clk 0:00:20]}  Nd3 {[%clk 0:00:58]} 43. Kh3 {[%clk 0:00:11]}  Kg5 {[%clk 0:00:56]} 44. Ne7 {[%clk 0:00:09]}  Kf4 {[%clk 0:00:48]} 45. Kh4 {[%clk 0:00:08]}  Kxf3 {[%clk 0:00:48]} 46. Kxh5 {[%clk 0:00:09]}  Kxe4 {[%clk 0:00:48]} 47. Nc6 {[%clk 0:00:09]}  Nc5 {[%clk 0:00:48]} 48. Nxe5 {[%clk 0:00:09]}  Kxe5 {[%clk 0:00:48]} 49. Kh4 {[%clk 0:00:10]}  Kd4 {[%clk 0:00:49]} 50. Kg4 {[%clk 0:00:10]}  Kxc4 {[%clk 0:00:50]} 1/2-1/2


[Site "https://www.chess.com"]

[Event "Titled Tuesday Blitz October 11 Late 2022"]
[White "Krstic, Milos"]
[Black "Poltorak, Sebastian"]
[WhiteFideId "954888"]
[BlackFideId "1199498"]
[WhiteElo "2194"]
[BlackElo "2232"]
[Result "0-1"]
[Round "07"]
[TimeControl "180+1"]
[Date "2022.10.12"]
[WhiteClock "0:01:12"]
[BlackClock "0:02:16"]

1. e4 {[%clk 0:02:56]}  c5 {[%clk 0:02:59]} 2. Nf3 {[%clk 0:02:56]}  Nc6 {[%clk 0:02:59]} 3. d4 {[%clk 0:02:55]}  cxd4 {[%clk 0:02:59]} 4. Nxd4 {[%clk 0:02:56]}  Nf6 {[%clk 0:03:00]} 5. Nc3 {[%clk 0:02:51]}  e5 {[%clk 0:03:00]} 6. Ndb5 {[%clk 0:02:51]}  d6 {[%clk 0:02:59]} 7. Bg5 {[%clk 0:02:51]}  a6 {[%clk 0:02:59]} 8. Na3 {[%clk 0:02:52]}  b5 {[%clk 0:02:59]} 9. Bxf6 {[%clk 0:02:52]}  gxf6 {[%clk 0:03:00]} 10. Nd5 {[%clk 0:02:53]}  f5 {[%clk 0:03:00]} 11. c3 {[%clk 0:02:53]}  Bg7 {[%clk 0:03:00]} 12. exf5 {[%clk 0:02:52]}  Bxf5 {[%clk 0:03:00]} 13. Nc2 {[%clk 0:02:52]}  O-O {[%clk 0:02:59]} 14. Nce3 {[%clk 0:02:53]}  Be6 {[%clk 0:02:59]} 15. Bd3 {[%clk 0:02:51]}  Ne7 {[%clk 0:02:58]} 16. Nxe7+ {[%clk 0:02:45]}  Qxe7 {[%clk 0:02:58]} 17. Be4 {[%clk 0:02:45]}  Rad8 {[%clk 0:02:55]} 18. Bd5 {[%clk 0:02:43]}  f5 {[%clk 0:02:53]} 19. Bxe6+ {[%clk 0:02:43]}  Qxe6 {[%clk 0:02:53]} 20. Qd5 {[%clk 0:02:43]}  Kf7 {[%clk 0:02:46]} 21. O-O-O {[%clk 0:02:36]}  f4 {[%clk 0:02:43]} 22. Qf3 {[%clk 0:02:25]}  Qxa2 {[%clk 0:02:39]} 23. Nf5 {[%clk 0:02:21]}  Qe6 {[%clk 0:02:30]} 24. Qg4 {[%clk 0:02:12]}  Qf6 {[%clk 0:02:19]} 25. g3 {[%clk 0:01:40]}  Kg8 {[%clk 0:02:18]} 26. Nxg7 {[%clk 0:01:34]}  Qxg7 {[%clk 0:02:18]} 27. Qe6+ {[%clk 0:01:35]}  Qf7 {[%clk 0:02:19]} 28. Rxd6 {[%clk 0:01:34]}  Qxe6 {[%clk 0:02:19]} 29. Rxe6 {[%clk 0:01:35]}  fxg3 {[%clk 0:02:19]} 30. fxg3 {[%clk 0:01:34]}  Rf2 {[%clk 0:02:20]} 31. Rxa6 {[%clk 0:01:19]}  Rdd2 {[%clk 0:02:19]} 32. Rd1 {[%clk 0:01:19]}  Rxb2 {[%clk 0:02:17]} 33. Ra7 {[%clk 0:01:12]}  Rfc2# {[%clk 0:02:16]} 0-1


[Site "https://www.chess.com"]

[Event "Titled Tuesday Blitz October 11 Late 2022"]
[White "Maksimovic, Bojan"]
[Black "Noboa Silva, Kevin"]
[WhiteFideId "14408120"]
[BlackFideId "3618471"]
[WhiteElo "2888"]
[BlackElo "2570"]
[Result "1-0"]
[Round "07"]
[TimeControl "180+1"]
[Date "2022.10.12"]
[WhiteClock "0:01:18"]
[BlackClock "0:00:06"]

1. e4 {[%clk 0:03:00]}  e6 {[%clk 0:02:54]} 2. d4 {[%clk 0:03:00]}  d5 {[%clk 0:02:54]} 3. Nc3 {[%clk 0:03:00]}  Nf6 {[%clk 0:02:52]} 4. Bg5 {[%clk 0:03:00]}  Be7 {[%clk 0:02:52]} 5. e5 {[%clk 0:03:00]}  Nfd7 {[%clk 0:02:53]} 6. Bxe7 {[%clk 0:03:00]}  Qxe7 {[%clk 0:02:53]} 7. Nb5 {[%clk 0:03:01]}  Nb6 {[%clk 0:02:53]} 8. c3 {[%clk 0:03:01]}  O-O {[%clk 0:02:53]} 9. f4 {[%clk 0:03:01]}  a6 {[%clk 0:02:42]} 10. Na3 {[%clk 0:03:01]}  Bd7 {[%clk 0:02:42]} 11. Nf3 {[%clk 0:03:00]}  f5 {[%clk 0:02:39]} 12. Bd3 {[%clk 0:02:57]}  Nc6 {[%clk 0:02:37]} 13. O-O {[%clk 0:02:50]}  Na5 {[%clk 0:02:34]} 14. Qe2 {[%clk 0:02:29]}  Qe8 {[%clk 0:02:28]} 15. h3 {[%clk 0:02:27]}  Nbc4 {[%clk 0:02:19]} 16. Nb1 {[%clk 0:02:15]}  Qe7 {[%clk 0:02:04]} 17. b3 {[%clk 0:02:14]}  Nb6 {[%clk 0:02:02]} 18. Nbd2 {[%clk 0:02:11]}  c5 {[%clk 0:01:59]} 19. Kh2 {[%clk 0:02:02]}  c4 {[%clk 0:01:47]} 20. Bc2 {[%clk 0:02:00]}  cxb3 {[%clk 0:01:39]} 21. axb3 {[%clk 0:02:01]}  Nc6 {[%clk 0:01:38]} 22. Rg1 {[%clk 0:02:01]}  Be8 {[%clk 0:01:35]} 23. Qe3 {[%clk 0:02:00]}  Qc7 {[%clk 0:01:30]} 24. g4 {[%clk 0:01:59]}  Ne7 {[%clk 0:01:30]} 25. Nh4 {[%clk 0:01:56]}  Rc8 {[%clk 0:01:29]} 26. Rg3 {[%clk 0:01:56]}  fxg4 {[%clk 0:01:25]} 27. hxg4 {[%clk 0:01:54]}  Nd7 {[%clk 0:01:03]} 28. Rf1 {[%clk 0:01:50]}  b5 {[%clk 0:01:00]} 29. f5 {[%clk 0:01:49]}  b4 {[%clk 0:00:53]} 30. f6 {[%clk 0:01:40]}  Ng6 {[%clk 0:00:39]} 31. Nxg6 {[%clk 0:01:34]}  Bxg6 {[%clk 0:00:36]} 32. Bxg6 {[%clk 0:01:34]}  hxg6 {[%clk 0:00:37]} 33. c4 {[%clk 0:01:31]}  dxc4 {[%clk 0:00:33]} 34. Nxc4 {[%clk 0:01:32]}  Nb6 {[%clk 0:00:27]} 35. Nd6 {[%clk 0:01:28]}  Nd5 {[%clk 0:00:27]} 36. Qg5 {[%clk 0:01:28]}  Qc2+ {[%clk 0:00:19]} 37. Rg2 {[%clk 0:01:28]}  Qd3 {[%clk 0:00:17]} 38. f7+ {[%clk 0:01:23]}  Rxf7 {[%clk 0:00:10]} 39. Rxf7 {[%clk 0:01:23]}  Ne3 {[%clk 0:00:08]} 40. Rf3 {[%clk 0:01:17]}  Nf1+ {[%clk 0:00:05]} 41. Rxf1 {[%clk 0:01:17]}  Qxf1 {[%clk 0:00:06]} 42. Nxc8 {[%clk 0:01:18]} 1-0


[Site "https://www.chess.com"]

[Event "Titled Tuesday Blitz October 11 Late 2022"]
[White "Mazurkiewicz, Michal"]
[Black "Aldokhin, Ivan"]
[WhiteFideId "1124943"]
[BlackFideId "24115720"]
[WhiteElo "2471"]
[BlackElo "2600"]
[Result "1-0"]
[Round "07"]
[TimeControl "180+1"]
[Date "2022.10.12"]
[WhiteClock "0:00:12"]
[BlackClock "0:00:08"]

1. e4 {[%clk 0:02:59]}  c5 {[%clk 0:02:59]} 2. Nf3 {[%clk 0:02:59]}  e6 {[%clk 0:03:00]} 3. d3 {[%clk 0:02:59]}  d5 {[%clk 0:02:59]} 4. Nbd2 {[%clk 0:03:00]}  Nc6 {[%clk 0:02:59]} 5. g3 {[%clk 0:03:00]}  Bd6 {[%clk 0:02:57]} 6. Bg2 {[%clk 0:03:00]}  Nge7 {[%clk 0:02:57]} 7. O-O {[%clk 0:03:01]}  O-O {[%clk 0:02:58]} 8. Re1 {[%clk 0:03:01]}  Qc7 {[%clk 0:02:53]} 9. Qe2 {[%clk 0:03:00]}  Nd4 {[%clk 0:02:42]} 10. Nxd4 {[%clk 0:02:59]}  cxd4 {[%clk 0:02:43]} 11. e5 {[%clk 0:02:59]}  Bb4 {[%clk 0:02:35]} 12. a3 {[%clk 0:02:48]}  Ba5 {[%clk 0:02:33]} 13. b4 {[%clk 0:02:48]}  Bb6 {[%clk 0:02:33]} 14. Nb3 {[%clk 0:02:47]}  Bd7 {[%clk 0:01:46]} 15. Bb2 {[%clk 0:02:46]}  Ba4 {[%clk 0:01:46]} 16. Nxd4 {[%clk 0:02:36]}  Bxd4 {[%clk 0:01:34]} 17. Bxd4 {[%clk 0:02:37]}  Qxc2 {[%clk 0:01:30]} 18. Qf3 {[%clk 0:02:23]}  Qc7 {[%clk 0:01:02]} 19. Bc5 {[%clk 0:02:20]}  Rfc8 {[%clk 0:00:56]} 20. Rac1 {[%clk 0:02:11]}  b6 {[%clk 0:00:52]} 21. Bxe7 {[%clk 0:01:54]}  Qxe7 {[%clk 0:00:51]} 22. d4 {[%clk 0:01:49]}  Bb5 {[%clk 0:00:47]} 23. Rc3 {[%clk 0:01:49]}  Bc4 {[%clk 0:00:28]} 24. h4 {[%clk 0:01:48]}  a5 {[%clk 0:00:25]} 25. bxa5 {[%clk 0:01:43]}  Rxa5 {[%clk 0:00:24]} 26. h5 {[%clk 0:01:37]}  h6 {[%clk 0:00:24]} 27. Bf1 {[%clk 0:01:36]}  b5 {[%clk 0:00:23]} 28. Rb1 {[%clk 0:01:29]}  Rca8 {[%clk 0:00:23]} 29. Bxc4 {[%clk 0:01:28]}  bxc4 {[%clk 0:00:22]} 30. Kg2 {[%clk 0:01:13]}  Qa7 {[%clk 0:00:21]} 31. g4 {[%clk 0:01:01]}  Rb8 {[%clk 0:00:15]} 32. Rxb8+ {[%clk 0:00:58]}  Qxb8 {[%clk 0:00:14]} 33. g5 {[%clk 0:00:58]}  Qd8 {[%clk 0:00:14]} 34. gxh6 {[%clk 0:00:54]}  Qg5+ {[%clk 0:00:14]} 35. Qg3 {[%clk 0:00:49]}  gxh6 {[%clk 0:00:11]} 36. Qxg5+ {[%clk 0:00:23]}  hxg5 {[%clk 0:00:10]} 37. Kh3 {[%clk 0:00:24]}  Rb5 {[%clk 0:00:07]} 38. Kg4 {[%clk 0:00:19]}  Rb3 {[%clk 0:00:07]} 39. Rc1 {[%clk 0:00:15]}  Rxa3 {[%clk 0:00:07]} 40. Kxg5 {[%clk 0:00:16]}  Rf3 {[%clk 0:00:07]} 41. Kh6 {[%clk 0:00:14]}  Rxf2 {[%clk 0:00:03]} 42. Ra1 {[%clk 0:00:15]}  Kf8 {[%clk 0:00:02]} 43. Ra8+ {[%clk 0:00:15]}  Ke7 {[%clk 0:00:02]} 44. Ra7+ {[%clk 0:00:15]}  Ke8 {[%clk 0:00:03]} 45. Ra8+ {[%clk 0:00:15]}  Kd7 {[%clk 0:00:03]} 46. Kg7 {[%clk 0:00:11]}  Kc6 {[%clk 0:00:01]} 47. h6 {[%clk 0:00:10]}  Rg2+ {[%clk 0:00:02]} 48. Kxf7 {[%clk 0:00:10]}  Rh2 {[%clk 0:00:02]} 49. Kxe6 {[%clk 0:00:08]}  Rxh6+ {[%clk 0:00:01]} 50. Ke7 {[%clk 0:00:08]}  Rh7+ {[%clk 0:00:01]} 51. Kf6 {[%clk 0:00:08]}  Kb5 {[%clk 0:00:01]} 52. e6 {[%clk 0:00:08]}  c3 {[%clk 0:00:02]} 53. Rc8 {[%clk 0:00:08]}  Kb4 {[%clk 0:00:02]} 54. e7 {[%clk 0:00:09]}  Rxe7 {[%clk 0:00:02]} 55. Kxe7 {[%clk 0:00:10]}  Kb3 {[%clk 0:00:02]} 56. Ke6 {[%clk 0:00:10]}  c2 {[%clk 0:00:02]} 57. Kxd5 {[%clk 0:00:10]}  Kb2 {[%clk 0:00:03]} 58. Ke6 {[%clk 0:00:10]}  c1=Q {[%clk 0:00:04]} 59. Rxc1 {[%clk 0:00:10]}  Kxc1 {[%clk 0:00:05]} 60. d5 {[%clk 0:00:11]}  Kd2 {[%clk 0:00:06]} 61. d6 {[%clk 0:00:11]}  Kd3 {[%clk 0:00:07]} 62. d7 {[%clk 0:00:12]}  Ke4 {[%clk 0:00:08]} 63. d8=Q {[%clk 0:00:12]}  Ke3 {[%clk 0:00:08]} 64. Qa5 {[%clk 0:00:12]} 1-0


[Site "https://www.chess.com"]